[Event "Turkish Second League 2019"]
[Site "Konya"]
[Date "2019.07.24"]
[Round "4"]
[White "Ilkbahar, Nimet Seray"]
[Black "Ozbek, Busra"]
[Result "1/2-1/2"]
[ECO "B01"]
[WhiteElo "1531"]
[BlackElo "1866"]
[Annotator "NA"]
[PlyCount "68"]
[EventDate "2019.07.22"]
[EventType "team-tourn"]
[EventCountry "TUR"]
[SourceTitle "playchess.com"]
[Source "ChessBase"]
[SourceQuality "1"]
[TimeControl "5400+30"]

1. e4 {[%emt 0:00:30]} d5 {[%emt 0:01:30]} 2. exd5 {[%emt 0:00:30]} Qxd5 {[%emt 0:00:00]} 3. Nc3 {[%emt 0:00:00]} Qd8 {[%emt 0:00:00]} 4. d4 {[%emt 0:00:00]} Nf6 {[%emt 0:00:00]} 5. Bc4 {[%emt 0:00:00]} a6 {[%emt 0:00:00]} 6. Nf3 {[%emt 0:00:00]} b5 {[%emt 0:00:30]} 7. Bb3 {[%emt 0:00:30]} c5 {[%emt 0:00:30]} 8. dxc5 {[%emt 0:06:30]} Qxd1+ {[%emt 0:03:30]} 9. Nxd1 {[%emt 0:02:30]} e6 {[%emt 0:00:30]} 10. O-O {[%emt 0:15:30]} Bb7 {[%emt 0:02:30]} 11. Ne5 {[%emt 0:01:30]} Bxc5 {[%emt 0:01:30]} 12. Be3 {[%emt 0:08:30]} Nbd7 {[%emt 0:13:30]} 13. Nd3 {[%emt 0:09:30]} Bd6 {[%emt 0:08:30]} 14. f3 {[%emt 0:09:30]} O-O {[%emt 0:01:30]} 15. a4 {[%emt 0:08:30]} Bd5 {[%emt 0:07:30]} 16. Bxd5 {[%emt 0:04:30]} Nxd5 {[%emt 0:00:30]} 17. Bf2 {[%emt 0:00:30]} b4 {[%emt 0:09:30]} 18. Ne3 {[%emt 0:01:30]} N7b6 {[%emt 0:01:30]} 19. Nxd5 {[%emt 0:08:30]} Nxd5 {[%emt 0:00:00]} 20. Rac1 {[%emt 0:02:04]} Rac8 {[%emt 0:01:00]} 21. Bd4 {[%emt 0:06:06]} Rfd8 {[%emt 0:11:30]} 22. Rfd1 {[%emt 0:03:43]} f6 {[%emt 0:03:30]} 23. c4 {[%emt 0:01:54]} Nf4 {[%emt 0:04:30]} 24. Kf2 {[%emt 0:05:41]} Nxd3+ {[%emt 0:05:30]} 25. Rxd3 {[%emt 0:00:02]} Bf4 {[%emt 0:02:30]} 26. Rcd1 {[%emt 0:00:30]} Rxc4 {[%emt 0:00:30]} 27. g3 {[%emt 0:00:30]} Rc2+ {[%emt 0:00:30]} 28. Kf1 {[%emt 0:00:30]} Bc7 {[%emt 0:00:30]} 29. R3d2 {[%emt 0:00:30]} Kf7 {[%emt 0:00:30]} 30. Ke2 {[%emt 0:00:30]} a5 {[%emt 0:00:30]} 31. Rxc2 {[%emt 0:00:30]} Rd7 {[%emt 0:00:30]} 32. Ke3 {[%emt 0:00:30]} e5 {[%emt 0:00:30]} 33. Ba7 {[%emt 0:00:30]} Bd8 {[%emt 0:00:30]} 34. Rcd2 {[%emt 0:00:30]} Ke6 {[%emt 0:00:30]} 1/2-1/2

[Event "Turkish Second League 2019"]
[Site "Konya"]
[Date "2019.07.24"]
[Round "4"]
[White "Guclu, Yagmur"]
[Black "Ayazmali, Gizem"]
[Result "1/2-1/2"]
[ECO "B22"]
[WhiteElo "1516"]
[BlackElo "1767"]
[Annotator "NA"]
[PlyCount "71"]
[EventDate "2019.07.22"]
[EventType "team-tourn"]
[EventCountry "TUR"]
[SourceTitle "playchess.com"]
[Source "ChessBase"]
[SourceQuality "1"]
[TimeControl "5400+30"]

1. e4 c5 2. c3 d5 3. exd5 Qxd5 4. d4 cxd4 5. cxd4 Nc6 6. Nf3 Bg4 7. Be2 e6 8. O-O Nf6 9. Nc3 Qd8 10. Be3 Be7 11. h3 Bh5 12. Qd2 O-O 13. Rfd1 Nb4 14. a3 Nbd5 15. Rac1 Nxc3 16. Qxc3 Nd5 17. Qb3 Qb6 18. Qxb6 axb6 19. g4 Bg6 20. Ne5 Nxe3 21. fxe3 Bg5 22. Rc3 Rac8 23. Nxg6 Rxc3 24. Ne7+ Bxe7 25. bxc3 Bxa3 26. Rb1 Rc8 27. c4 Be7 28. Rxb6 Rc7 29. c5 e5 30. Bf3 exd4 31. exd4 Rxc5 32. Rxb7 Rc1+ 33. Kf2 Bh4+ 34. Ke3 g6 35. d5 Bg5+ 36. Ke4 {[%emt 1:47:52]} 1/2-1/2

[Event "Turkish Second League 2019"]
[Site "Konya"]
[Date "2019.07.24"]
[Round "4"]
[White "Gunes, Deren"]
[Black "Sade, Defne"]
[Result "0-1"]
[ECO "C91"]
[WhiteElo "1266"]
[BlackElo "1897"]
[Annotator "NA"]
[PlyCount "110"]
[EventDate "2019.07.22"]
[EventType "team-tourn"]
[EventCountry "TUR"]
[SourceTitle "playchess.com"]
[Source "ChessBase"]
[SourceQuality "1"]
[TimeControl "5400+30"]

1. e4 e5 2. Nf3 Nc6 3. Bb5 a6 4. Ba4 Nf6 5. O-O Be7 6. Re1 b5 7. Bb3 d6 8. c3 O-O 9. d4 Bg4 10. Be3 Bh5 11. Nbd2 Re8 12. Rc1 Bf8 13. Qc2 Na5 14. Bg5 Nxb3 15. Qxb3 h6 16. Bxf6 Qxf6 17. d5 Reb8 18. a3 a5 19. Rc2 g5 20. h3 g4 21. hxg4 Bxg4 22. c4 b4 23. Nh2 Bd7 24. a4 Be7 25. Qg3+ Kh7 26. b3 Rg8 27. Qf3 Qg6 28. Ndf1 f5 29. exf5 Bxf5 30. Rce2 Raf8 31. Qg3 Qh5 32. Qf3 Qxf3 33. Nxf3 Bg4 34. Ng3 Bxf3 35. gxf3 h5 36. Kh1 Rxf3 37. Rb2 h4 38. Kg2 Rf6 39. Rh1 Rh6 40. Rbb1 hxg3 41. fxg3 Rf8 42. Rbe1 Rxh1 43. Rxh1+ Kg6 44. g4 Bg5 45. Re1 Rf4 46. Kg3 e4 47. Re3 Rxg4+ 48. Kxg4 Bxe3 49. Kh4 Kf5 50. Kg3 Bc5 51. Kg2 Kf4 52. Kf1 Ke3 53. Ke1 Kd3 54. Kd1 Bf2 55. Kc1 e3 0-1

[Event "Turkish Second League 2019"]
[Site "Konya"]
[Date "2019.07.25"]
[Round "5"]
[White "Bashirli, Nail"]
[Black "Yilmazyerli, Mert"]
[Result "1-0"]
[ECO "B09"]
[WhiteElo "2367"]
[BlackElo "2420"]
[Annotator "NA"]
[PlyCount "207"]
[EventDate "2019.07.22"]
[EventType "team-tourn"]
[EventCountry "TUR"]
[SourceTitle "playchess.com"]
[Source "ChessBase"]
[SourceQuality "1"]
[TimeControl "5400+30"]

1. e4 {[%emt 0:01:30]} g6 {[%emt 0:01:30]} 2. d4 {[%emt 0:00:00]} Bg7 {[%emt 0:00:30]} 3. Nc3 {[%emt 0:00:00]} d6 {[%emt 0:00:00]} 4. f4 {[%emt 0:00:30]} Nf6 {[%emt 0:01:00]} 5. Nf3 {[%emt 0:00:00]} c5 {[%emt 0:01:30]} 6. dxc5 {[%emt 0:04:00]} Qa5 {[%emt 0:01:30]} 7. Bd3 {[%emt 0:00:30]} Qxc5 {[%emt 0:00:30]} 8. Qe2 {[%emt 0:00:30]} O-O {[%emt 0:01:30]} 9. Be3 {[%emt 0:02:30]} Qa5 {[%emt 0:00:30]} 10. O-O {[%emt 0:01:30]} Bg4 {[%emt 0:00:30]} 11. a3 {[%emt 0:13:30]} Nc6 {[%emt 0:01:30] B09: Pirc Defence: Austrian Attack} 12. b4 {[%emt 0:17:30]} Qd8 {[%emt 0:13:30]} 13. Rae1 {[%emt 0:07:30]} Rc8 $146 {[%emt 0:05:30]} ({Predecessor:} 13... Nh5 14. Qd2 Rc8 15. Ne2 e5 16. fxe5 Bxf3 17. gxf3 Nxe5 18. Rd1 a6 19. f4 {0-1 (35) Corrales Jimenez,F (2502)-Rojas Keim,L (2414) Montcada 2008}) 14. Qd2 {[%emt 0:14:30]} Bxf3 {[%emt 0:08:30]} 15. gxf3 {[%emt 0:02:30]} d5 {[%emt 0:05:30]} 16. Nxd5 {[%emt 0:06:30]} Nxd5 {[%emt 0:01:30]} 17. exd5 {[%emt 0:00:30]} Qxd5 {[%emt 0:00:30]} 18. c4 {[%emt 0:00:30]} Qd7 {[%emt 0:12:30]} 19. Be4 {[%emt 0:05:30]} Qxd2 {[%emt 0:02:30]} 20. Bxd2 {[%emt 0:00:00]} Rfd8 {[%emt 0:00:00]} 21. Be3 {[%emt 0:01:00]} Bb2 {[%emt 0:08:00]} 22. Rb1 {[%emt 0:03:32]} Bd4 {[%emt 0:01:30]} 23. Kf2 {[%emt 0:00:20]} Rc7 {[%emt 0:08:30]} 24. Rfd1 {[%emt 0:01:40]} Rcd7 {[%emt 0:00:30]} 25. Ke2 {[%emt 0:03:12]} e6 {[%emt 0:03:30]} 26. b5 {[%emt 0:03:56]} Na5 {[%emt 0:00:30]} 27. c5 {[%emt 0:00:51]} Bxe3 {[%emt 0:03:43]} 28. Rxd7 {[%emt 0:00:26]} Rxd7 {[%emt 0:00:05]} 29. Kxe3 {[%emt 0:00:18]} f5 {[%emt 0:03:53]} 30. Bd3 {[%emt 0:06:27]} Rd5 {[%emt 0:00:35]} 31. Rc1 {[%emt 0:03:41]} Nb3 {[%emt 0:00:37]} 32. Bc4 {[%emt 0:00:20]} Rxc5 {[%emt 0:02:50]} 33. Rc2 {[%emt 0:00:30]} Kf7 {[%emt 0:00:30]} 34. Bxb3 {[%emt 0:00:30]} Rxb5 {[%emt 0:00:00]} 35. Rc7+ {[%emt 0:00:24]} Kf6 {[%emt 0:00:00]} 36. Ba4 {[%emt 0:00:07]} Ra5 {[%emt 0:00:57]} 37. Be8 {[%emt 0:00:07]} e5 {[%emt 0:00:00]} 38. a4 {[%emt 0:00:26]} exf4+ {[%emt 0:01:26]} 39. Kd4 {[%emt 0:00:06]} g5 {[%emt 0:07:20]} 40. Rf7+ {[%emt 0:00:05]} Ke6 {[%emt 0:00:00]} 41. Rxh7 {[%emt 0:01:07]} Rd5+ {[%emt 0:00:05]} 42. Kc3 {[%emt 0:00:17]} Rd8 {[%emt 0:00:05]} 43. Bb5 {[%emt 0:00:12]} g4 {[%emt 0:00:31]} 44. fxg4 {[%emt 0:00:38]} fxg4 {[%emt 0:00:30]} 45. Rg7 {[%emt 0:00:00]} a6 {[%emt 0:00:52]} 46. Bd3 {[%emt 0:00:35]} b5 {[%emt 0:00:15]} 47. Rxg4 {[%emt 0:00:23]} Rh8 {[%emt 0:01:10]} 48. h4 {[%emt 0:00:34]} Ke5 {[%emt 0:00:51]} 49. axb5 {[%emt 0:00:48]} axb5 {[%emt 0:01:00]} 50. Rg5+ {[%emt 0:00:03]} Ke6 {[%emt 0:00:32]} 51. h5 {[%emt 0:00:00]} Kf6 {[%emt 0:01:35]} 52. Rxb5 {[%emt 0:00:38]} Kg7 {[%emt 0:00:23]} 53. Kd4 {[%emt 0:01:39]} Kh6 {[%emt 0:00:51]} 54. Ke4 {[%emt 0:00:29]} Rf8 {[%emt 0:00:02]} 55. Kf3 {[%emt 0:00:24]} Rf6 {[%emt 0:01:26]} 56. Bg6 {[%emt 0:00:05]} Ra6 {[%emt 0:00:15]} 57. Kxf4 {[%emt 0:00:42]} Rf6+ {[%emt 0:00:50]} 58. Kg4 {[%emt 0:00:41]} Rf8 {[%emt 0:00:05]} 59. Rb6 {[%emt 0:00:00]} Rd8 {[%emt 0:01:43]} 60. Bf5+ {[%emt 0:00:18]} Kg7 {[%emt 0:00:30]} 61. Kg5 {[%emt 0:00:00]} Kh8 {[%emt 0:00:00]} 62. Rb7 {[%emt 0:00:00]} Rg8+ {[%emt 0:00:25]} 63. Kh6 {[%emt 0:00:48]} Rg7 {[%emt 0:00:09]} 64. Bd7 {[%emt 0:00:09]} Rg8 {[%emt 0:00:51]} 65. Bf5 $11 {[%emt 0:01:22]} (65. Rb5 {mates} Rg7 66. Rb8+ Rg8 67. Rb5 Rg1 68. Be8 Rg7 69. Bg6 Rg8 70. Bf7) 65... Rg7 {[%emt 0:00:18]} 66. Rb6 {[%emt 0:00:22]} Rg8 {[%emt 0:01:15]} 67. Bg6 {[%emt 0:00:25]} Rg7 {[%emt 0:00:31]} 68. Rb8+ {[%emt 0:01:31]} Rg8 {[%emt 0:00:05]} 69. Rb7 {[%emt 0:00:02]} Rg7 {[%emt 0:00:09]} 70. Bf7 {[%emt 0:00:21]} Rh7+ {[%emt 0:00:21]} 71. Kg5 {[%emt 0:00:16]} Rg7+ {[%emt 0:00:47]} 72. Kf6 {[%emt 0:00:13]} Kh7 {[%emt 0:00:42]} 73. Rb8 {[%emt 0:00:56]} Kh6 {[%emt 0:00:43]} 74. Ke6 {[%emt 0:01:22]} Rh7 {[%emt 0:00:44]} 75. Bg6 {[%emt 0:00:48]} Ra7 {[%emt 0:00:48]} 76. Rh8+ {[%emt 0:00:55]} Kg5 {[%emt 0:00:04]} 77. Bf7 {[%emt 0:00:00]} Rb7 {[%emt 0:00:22]} 78. Rg8+ {[%emt 0:02:05]} Kh6 {[%emt 0:00:11]} 79. Kf6 {[%emt 0:00:00]} Rb6+ {[%emt 0:00:19]} 80. Be6 {[%emt 0:00:02]} Rb7 {[%emt 0:00:17]} 81. Ra8 {[%emt 0:00:46]} Rc7 {[%emt 0:00:43]} 82. Rh8+ {[%emt 0:01:21]} Rh7 {[%emt 0:00:03]} 83. Rg8 {[%emt 0:00:04]} Rb7 {[%emt 0:02:26]} 84. Bf7 {[%emt 0:00:12]} Rb6+ {[%emt 0:00:14]} 85. Ke7 {[%emt 0:00:03]} Kh7 {[%emt 0:00:49]} 86. Rg6 {[%emt 0:00:34]} Rb7+ {[%emt 0:01:07]} 87. Kf8 {[%emt 0:00:01]} Rb8+ {[%emt 0:00:11]} 88. Be8 {[%emt 0:00:06]} Ra8 {[%emt 0:00:00]} 89. Rb6 {[%emt 0:00:24]} Rc8 {[%emt 0:00:19]} 90. Ke7 {[%emt 0:00:19]} Rc7+ {[%emt 0:00:18]} 91. Bd7 {[%emt 0:00:39]} Ra7 {[%emt 0:00:07]} 92. Rd6 {[%emt 0:00:00]} Ra5 {[%emt 0:00:45]} 93. Bg4 {[%emt 0:00:35]} Ra7+ {[%emt 0:01:07]} 94. Kf6 {[%emt 0:00:05]} Rg7 {[%emt 0:00:21]} 95. Bf3 {[%emt 0:00:35]} Rg3 {[%emt 0:00:36]} 96. Be4+ {[%emt 0:00:32]} Kh6 {[%emt 0:00:41]} 97. Kf5+ {[%emt 0:00:34]} Kxh5 {[%emt 0:00:39]} 98. Rd1 {[%emt 0:00:56]} Kh6 {[%emt 0:00:26]} 99. Kf4 {[%emt 0:00:10]} Rg8 {[%emt 0:00:38]} 100. Rd7 {[%emt 0:00:46]} Rf8+ {[%emt 0:00:10]} 101. Bf5 {[%emt 0:00:49]} Rh8 {[%emt 0:00:08]} 102. Kg4 {[%emt 0:00:03]} Rg8+ {[%emt 0:00:55]} 103. Kh4 {[%emt 0:00:06]} Rh8 {[%emt 0:00:24]} 104. Be4 {[%emt 0:00:08]} 1-0

[Event "Turkish Second League 2019"]
[Site "Konya"]
[Date "2019.07.25"]
[Round "5"]
[White "Garayev, Kanan"]
[Black "Ozsakallioglu, Okan"]
[Result "1/2-1/2"]
[ECO "B22"]
[WhiteElo "2351"]
[BlackElo "2243"]
[Annotator "NA"]
[PlyCount "85"]
[EventDate "2019.07.22"]
[EventType "team-tourn"]
[EventCountry "TUR"]
[SourceTitle "playchess.com"]
[Source "ChessBase"]
[SourceQuality "1"]
[TimeControl "5400+30"]

1. e4 {[%emt 0:00:30]} c5 {[%emt 0:00:30]} 2. Nf3 {[%emt 0:00:00]} e6 {[%emt 0:03:30]} 3. c3 {[%emt 0:03:00]} Nf6 {[%emt 0:00:30]} 4. e5 {[%emt 0:00:30]} Nd5 {[%emt 0:00:00]} 5. d4 {[%emt 0:00:30]} cxd4 {[%emt 0:00:00]} 6. cxd4 {[%emt 0:00:30]} b6 {[%emt 0:03:30]} 7. Nc3 {[%emt 0:02:30]} Nxc3 {[%emt 0:06:30]} 8. bxc3 {[%emt 0:00:30]} Bb7 {[%emt 0:00:00]} 9. Bd3 {[%emt 0:04:30]} Be7 {[%emt 0:00:00]} 10. Qe2 {[%emt 0:04:30]} d6 {[%emt 0:01:30]} 11. O-O {[%emt 0:06:30]} Nd7 {[%emt 0:06:30]} 12. exd6 {[%emt 0:12:30]} Bxd6 {[%emt 0:00:00]} 13. h3 {[%emt 0:16:30]} O-O {[%emt 0:03:00]} 14. c4 {[%emt 0:08:30]} h6 {[%emt 0:05:30]} 15. Bb2 {[%emt 0:01:30]} Qe7 {[%emt 0:06:30]} 16. a4 {[%emt 0:01:30]} Nf6 {[%emt 0:01:30]} 17. Ne5 {[%emt 0:01:30]} Rfd8 {[%emt 0:02:30]} 18. f4 {[%emt 0:03:30]} Nd7 {[%emt 0:04:30]} 19. Rae1 {[%emt 0:02:30]} Bb4 {[%emt 0:03:30]} 20. Rd1 {[%emt 0:00:30]} Nxe5 {[%emt 0:01:30]} 21. fxe5 {[%emt 0:00:30]} Ba3 {[%emt 0:02:30]} 22. Ba1 {[%emt 0:02:30]} Rac8 {[%emt 0:01:30]} 23. Rf4 {[%emt 0:00:30]} Rc7 {[%emt 0:01:30]} 24. Rdf1 {[%emt 0:01:30]} Qe8 {[%emt 0:00:00]} 25. Kh1 {[%emt 0:09:23]} Bf8 {[%emt 0:10:00]} 26. Qg4 {[%emt 0:01:12]} Ba6 {[%emt 0:00:30]} 27. Qe2 {[%emt 0:03:52]} Qc6 {[%emt 0:01:30]} 28. Qh5 {[%emt 0:06:03]} Bxc4 {[%emt 0:01:30]} 29. Bxc4 {[%emt 0:03:32]} Qxc4 {[%emt 0:00:00]} 30. Rxf7 {[%emt 0:00:17]} Rxf7 {[%emt 0:01:00]} 31. Qxf7+ {[%emt 0:00:01]} Kh8 {[%emt 0:00:00]} 32. Kh2 {[%emt 0:00:23]} a6 {[%emt 0:00:00]} 33. Rf6 {[%emt 0:03:02]} Qxa4 {[%emt 0:02:30]} 34. Rxh6+ {[%emt 0:01:43]} gxh6 {[%emt 0:00:30]} 35. Qf6+ {[%emt 0:00:00]} Bg7 {[%emt 0:00:30]} 36. Qxd8+ {[%emt 0:00:11]} Kh7 {[%emt 0:00:00]} 37. Bc3 {[%emt 0:01:10]} Qc6 {[%emt 0:00:00]} 38. Bb4 {[%emt 0:00:08]} Qe4 {[%emt 0:00:30]} 39. Qxb6 {[%emt 0:01:02]} Qf4+ {[%emt 0:00:00]} 40. Kh1 {[%emt 0:00:10]} Qf1+ {[%emt 0:00:00]} 41. Kh2 {[%emt 0:00:08]} Qf4+ {[%emt 0:00:30]} 42. Kg1 {[%emt 0:00:00]} Qe3+ {[%emt 0:00:00]} 43. Kf1 {[%emt 0:01:02]} 1/2-1/2

[Event "Turkish Second League 2019"]
[Site "Konya"]
[Date "2019.07.25"]
[Round "5"]
[White "Isik, Alparslan"]
[Black "Ucucu, Salih"]
[Result "1-0"]
[ECO "E04"]
[WhiteElo "2293"]
[BlackElo "1819"]
[Annotator "NA"]
[PlyCount "45"]
[EventDate "2019.07.22"]
[EventType "team-tourn"]
[EventCountry "TUR"]
[SourceTitle "playchess.com"]
[Source "ChessBase"]
[SourceQuality "1"]
[TimeControl "5400+30"]

1. d4 {[%emt 0:00:30]} Nf6 {[%emt 0:00:30]} 2. c4 {[%emt 0:00:30]} e6 {[%emt 0:00:00]} 3. Nf3 {[%emt 0:00:00]} d5 {[%emt 0:00:00]} 4. g3 {[%emt 0:00:00]} dxc4 {[%emt 0:00:30]} 5. Bg2 {[%emt 0:01:30]} a6 {[%emt 0:00:30]} 6. O-O {[%emt 0:01:30]} Nc6 {[%emt 0:01:30]} 7. e3 {[%emt 0:00:00]} Bd6 {[%emt 0:01:30]} 8. Nfd2 {[%emt 0:02:00]} O-O {[%emt 0:02:30]} 9. Nxc4 {[%emt 0:00:30]} Bd7 {[%emt 0:07:30]} 10. Nc3 {[%emt 0:01:30]} Rb8 {[%emt 0:06:30]} 11. e4 {[%emt 0:05:30]} b5 {[%emt 0:11:30]} 12. Nxd6 {[%emt 0:03:30]} cxd6 {[%emt 0:00:00]} 13. e5 {[%emt 0:02:30]} dxe5 {[%emt 0:10:00]} 14. dxe5 {[%emt 0:01:30]} Ne8 {[%emt 0:02:30]} 15. Bf4 {[%emt 0:06:30]} Nc7 {[%emt 0:10:30]} 16. Qh5 {[%emt 0:14:30]} Qe8 {[%emt 0:06:30]} 17. Rfd1 {[%emt 0:10:30]} Ne7 {[%emt 0:07:30]} 18. Bg5 {[%emt 0:04:30]} Ned5 {[%emt 0:12:02]} 19. Bf6 {[%emt 0:06:30]} Ne7 {[%emt 0:08:24]} 20. Ne4 {[%emt 0:02:30]} Ncd5 {[%emt 0:02:46]} 21. Rxd5 {[%emt 0:03:30]} exd5 {[%emt 0:01:31]} 22. Nd6 {[%emt 0:00:00]} Qd8 {[%emt 0:01:04]} 23. Qg5 {[%emt 0:00:00]} 1-0

[Event "Turkish Second League 2019"]
[Site "Konya"]
[Date "2019.07.25"]
[Round "5"]
[White "Lomsadze, Davit"]
[Black "Zarkua, Davit"]
[Result "1/2-1/2"]
[ECO "A30"]
[WhiteElo "2292"]
[BlackElo "2440"]
[Annotator "NA"]
[PlyCount "65"]
[EventDate "2019.07.22"]
[EventType "team-tourn"]
[EventCountry "TUR"]
[SourceTitle "playchess.com"]
[Source "ChessBase"]
[SourceQuality "1"]
[TimeControl "5400+30"]

1. Nf3 {[%emt 0:00:30]} Nf6 {[%emt 0:00:30]} 2. g3 {[%emt 0:00:30]} g6 {[%emt 0:00:30]} 3. Bg2 {[%emt 0:00:30]} Bg7 {[%emt 0:00:30]} 4. O-O {[%emt 0:00:00]} O-O {[%emt 0:00:00]} 5. d3 {[%emt 0:01:00]} c5 {[%emt 0:01:00]} 6. c4 {[%emt 0:04:30]} Nc6 {[%emt 0:03:30]} 7. Nc3 {[%emt 0:00:30]} b6 {[%emt 0:08:30]} 8. Bd2 {[%emt 0:14:30]} Bb7 {[%emt 0:02:30]} 9. Qc1 {[%emt 0:04:30]} d5 {[%emt 0:07:30]} 10. cxd5 {[%emt 0:03:30]} Nxd5 {[%emt 0:00:30]} 11. Bh6 {[%emt 0:03:30]} Nf6 {[%emt 0:00:30]} 12. Bxg7 {[%emt 0:01:30]} Kxg7 {[%emt 0:00:30]} 13. Rd1 {[%emt 0:05:30]} Rc8 {[%emt 0:06:30]} 14. Qf4 {[%emt 0:06:30]} Qd6 {[%emt 0:00:30]} 15. d4 {[%emt 0:06:30]} Qxf4 {[%emt 0:00:30]} 16. gxf4 {[%emt 0:00:00]} cxd4 {[%emt 0:00:30]} 17. Nxd4 {[%emt 0:00:00]} Ba8 {[%emt 0:00:30]} 18. Nxc6 {[%emt 0:00:30]} Bxc6 {[%emt 0:00:30]} 19. Bxc6 {[%emt 0:00:30]} Rxc6 {[%emt 0:00:00]} 20. e3 {[%emt 0:00:30]} Rfc8 {[%emt 0:05:00]} 21. Kg2 {[%emt 0:00:30]} a6 {[%emt 0:00:00]} 22. Kf3 {[%emt 0:00:00]} b5 {[%emt 0:00:00]} 23. a3 {[%emt 0:00:00]} Rc4 {[%emt 0:06:30]} 24. Rd2 {[%emt 0:01:30]} e6 {[%emt 0:00:30]} 25. Rd6 {[%emt 0:00:30]} R8c6 {[%emt 0:00:30]} 26. Rad1 {[%emt 0:01:30]} Rxd6 {[%emt 0:00:30]} 27. Rxd6 {[%emt 0:00:30]} b4 {[%emt 0:00:30]} 28. axb4 {[%emt 0:01:30]} Rxb4 {[%emt 0:00:00]} 29. Rxa6 {[%emt 0:00:00]} Rxb2 {[%emt 0:00:00]} 30. Ra2 {[%emt 0:00:00]} Rb3 {[%emt 0:00:30]} 31. Ne4 {[%emt 0:01:30]} Nxe4 {[%emt 0:00:30]} 32. Kxe4 {[%emt 0:00:00]} Rb1 {[%emt 0:00:00]} 33. Kf3 {[%emt 0:00:00]} 1/2-1/2